[Event "15e Open International de Quenza"]
[Site "Quenza"]
[Date "2026.07.05"]
[Round "5.3"]
[White "KJARTANSSON, Gudmundur"]
[Black "MAURIZZI, Marc Andria"]
[Result "0-1"]
[TimeControl "5min+3s"]
[WhiteTitle "GM"]
[BlackTitle "GM"]
[WhiteFideId "-"]
[BlackFideId "-"]
[WhiteElo "2367"]
[BlackElo "2556"]

1. Nf3 {[%clk 00:05:03]} {[%emt 00:02:49]} Nf6 {[%clk 00:05:03]} {[%emt
00:00:02]} 2. g3 {[%clk 00:05:03]} {[%emt 00:00:01]} c5 {[%clk 00:05:03]} 3. c4
{[%clk 00:05:03]} {[%emt 00:00:01]} b6 {[%clk 00:04:58]} {[%emt 00:00:08]} 4.
Bg2 {[%clk 00:05:03]} Bb7 {[%clk 00:04:58]} 5. O-O {[%clk 00:05:03]} {[%emt
00:00:01]} g6 {[%clk 00:04:58]} {[%emt 00:00:02]} 6. Nc3 {[%clk 00:05:03]}
{[%emt 00:00:04]} Bg7 {[%emt 00:00:03]} 7. d4 {[%clk 00:05:03]} cxd4 {[%clk
00:04:58]} 8. Qxd4 {[%clk 00:05:03]} {[%emt 00:00:01]} Nc6 {[%clk 00:04:58]}
{[%emt 00:00:02]} 9. Qf4 {[%clk 00:04:53]} {[%emt 00:00:13]} O-O {[%clk
00:04:58]} {[%emt 00:00:03]} 10. Rd1 {[%clk 00:04:51]} {[%emt 00:00:05]} Rc8
{[%clk 00:04:58]} {[%emt 00:00:02]} 11. Rb1 {[%clk 00:04:16]} {[%emt 00:00:38]}
d6 {[%clk 00:04:54]} {[%emt 00:00:07]} 12. b3 {[%clk 00:04:16]} {[%emt
00:00:01]} Nb8 {[%clk 00:04:32]} {[%emt 00:00:24]} 13. Bb2 {[%clk 00:04:09]}
{[%emt 00:00:10]} Nbd7 {[%clk 00:04:32]} 14. Rd2 {[%clk 00:03:58]} {[%emt
00:00:14]} a6 {[%clk 00:04:32]} {[%emt 00:00:04]} 15. h3 {[%clk 00:03:58]}
{[%emt 00:00:03]} Rc5 {[%clk 00:04:07]} {[%emt 00:00:27]} 16. e4 {[%clk
00:03:55]} {[%emt 00:00:06]} Qa8 {[%clk 00:04:07]} {[%emt 00:00:03]} 17. Nd5
{[%clk 00:03:27]} {[%emt 00:00:31]} Bxd5 {[%clk 00:04:02]} {[%emt 00:00:08]} 18.
exd5 {[%clk 00:03:25]} {[%emt 00:00:05]} b5 {[%clk 00:04:01]} {[%emt 00:00:04]}
19. Bf1 {[%clk 00:03:11]} {[%emt 00:00:17]} bxc4 {[%clk 00:03:57]} {[%emt
00:00:07]} 20. bxc4 {[%clk 00:03:11]} Rb8 {[%clk 00:03:29]} {[%emt 00:00:30]}
21. Nd4 {[%clk 00:03:03]} {[%emt 00:00:11]} Ne5 {[%clk 00:03:29]} 22. Nb3
{[%clk 00:03:03]} {[%emt 00:00:01]} Rc7 {[%clk 00:03:02]} {[%emt 00:00:30]} 23.
Re1 {[%clk 00:02:13]} {[%emt 00:00:53]} g5 {[%clk 00:02:31]} {[%emt 00:00:34]}
24. Qe3 {[%clk 00:02:05]} {[%emt 00:00:11]} Nxc4 {[%clk 00:02:31]} 25. Bxc4
{[%clk 00:02:05]} {[%emt 00:00:02]} Rxc4 {[%clk 00:02:31]} 26. Qxg5 {[%clk
00:02:03]} {[%emt 00:00:05]} h6 {[%clk 00:02:30]} {[%emt 00:00:05]} 27. Qf5
{[%clk 00:01:59]} {[%emt 00:00:07]} Re8 {[%clk 00:02:26]} {[%emt 00:00:07]} 28.
Na5 {[%clk 00:01:32]} {[%emt 00:00:30]} Rc5 {[%clk 00:02:25]} {[%emt 00:00:03]}
29. Nc6 {[%clk 00:01:20]} {[%emt 00:00:15]} Qxc6 {[%clk 00:02:15]} {[%emt
00:00:12]} 30. Re4 {[%clk 00:00:05]} {[%emt 00:01:18]} Rxd5 {[%clk 00:01:57]}
{[%emt 00:00:22]} 31. Rxd5 {[%clk 00:00:04]} {[%emt 00:00:04]} Qxd5 {[%clk
00:01:57]} {[%emt 00:00:02]} 0-1

[Event "15e Open International de Quenza"]
[Site "Quenza"]
[Date "2026.07.05"]
[Round "5.8"]
[White "TERRIEUX, Kevin"]
[Black "UTRERA, Ludovic"]
[Result "1-0"]
[TimeControl "5min+3s"]
[WhiteTitle "IM"]
[BlackTitle "-"]
[WhiteFideId "-"]
[BlackFideId "-"]
[WhiteElo "2451"]
[BlackElo "2067"]

1. e4 {[%clk 00:05:03]} c6 {[%clk 00:05:03]} {[%emt 00:00:01]} 2. d4 {[%clk
00:05:02]} {[%emt 00:00:04]} d5 {[%clk 00:05:03]} {[%emt 00:00:01]} 3. Nc3
{[%clk 00:05:01]} {[%emt 00:00:04]} dxe4 {[%clk 00:05:03]} {[%emt 00:00:01]} 4.
Nxe4 {[%clk 00:05:01]} {[%emt 00:00:02]} Nf6 {[%clk 00:05:03]} 5. Nxf6+ {[%clk
00:05:00]} {[%emt 00:00:05]} exf6 {[%clk 00:05:03]} {[%emt 00:00:01]} 6. c3
{[%clk 00:04:59]} {[%emt 00:00:03]} Bd6 {[%clk 00:05:03]} {[%emt 00:00:01]} 7.
Bd3 {[%clk 00:04:59]} {[%emt 00:00:04]} O-O {[%clk 00:05:03]} 8. Ne2 {[%clk
00:04:59]} {[%emt 00:00:04]} Re8 {[%clk 00:05:02]} {[%emt 00:00:05]} 9. O-O
{[%clk 00:04:59]} {[%emt 00:00:02]} h5 {[%clk 00:03:45]} {[%emt 00:01:20]} 10.
Nf4 {[%clk 00:04:48]} {[%emt 00:00:14]} Bg4 {[%clk 00:03:23]} {[%emt 00:00:25]}
11. f3 {[%clk 00:04:47]} {[%emt 00:00:03]} Bxf4 {[%clk 00:03:14]} {[%emt
00:00:13]} 12. Bxf4 {[%clk 00:04:43]} {[%emt 00:00:07]} Be6 {[%clk 00:03:13]}
{[%emt 00:00:03]} 13. Qd2 {[%clk 00:03:59]} {[%emt 00:00:48]} Nd7 {[%clk
00:03:13]} {[%emt 00:00:03]} 14. Qf2 {[%clk 00:03:56]} {[%emt 00:00:06]} f5
{[%clk 00:03:00]} {[%emt 00:00:17]} 15. Qg3 {[%clk 00:03:50]} {[%emt 00:00:09]}
Qf6 {[%clk 00:02:21]} {[%emt 00:00:42]} 16. h4 {[%clk 00:03:32]} {[%emt
00:00:20]} c5 {[%clk 00:02:21]} {[%emt 00:00:03]} 17. Bg5 {[%clk 00:03:25]}
{[%emt 00:00:10]} Qg6 {[%clk 00:02:21]} {[%emt 00:00:01]} 18. Qf2 {[%clk
00:03:22]} {[%emt 00:00:05]} cxd4 {[%clk 00:02:17]} {[%emt 00:00:07]} 19. Qxd4
{[%clk 00:03:18]} {[%emt 00:00:07]} b6 {[%clk 00:02:11]} {[%emt 00:00:09]} 20.
Bb5 {[%clk 00:03:16]} {[%emt 00:00:04]} f6 {[%clk 00:01:56]} {[%emt 00:00:18]}
21. Bf4 {[%clk 00:03:04]} {[%emt 00:00:15]} Red8 {[%clk 00:01:29]} {[%emt
00:00:31]} 22. Bc7 {[%clk 00:02:59]} {[%emt 00:00:08]} a6 {[%emt 00:00:27]} 23.
Bxd8 {[%clk 00:02:50]} {[%emt 00:00:11]} axb5 {[%clk 00:01:06]} {[%emt
00:00:02]} 24. Qd6 {[%clk 00:02:31]} {[%emt 00:00:21]} Rxd8 {[%clk 00:01:05]}
{[%emt 00:00:05]} 25. Qxe6+ {[%clk 00:02:31]} {[%emt 00:00:02]} Qf7 {[%clk
00:01:05]} 26. Qxf7+ {[%clk 00:02:30]} {[%emt 00:00:05]} Kxf7 {[%clk 00:01:05]}
{[%emt 00:00:01]} 27. Rad1 {[%clk 00:02:30]} {[%emt 00:00:01]} 1-0

[Event "15e Open International de Quenza"]
[Site "Quenza"]
[Date "2026.07.05"]
[Round "5.17"]
[White "WEBB, Laurence E"]
[Black "LAGUNES, Matthieu"]
[Result "1-0"]
[TimeControl "5min+3s"]
[WhiteTitle "FM"]
[BlackTitle "-"]
[WhiteFideId "-"]
[BlackFideId "-"]
[WhiteElo "2200"]
[BlackElo "1917"]

1. e4 {[%clk 00:05:03]} {[%emt 00:00:01]} g6 {[%clk 00:05:03]} {[%emt
00:00:02]} 2. d4 {[%clk 00:05:03]} d6 {[%clk 00:05:03]} {[%emt 00:00:02]} 3.
Nc3 {[%clk 00:05:03]} {[%emt 00:00:01]} a6 {[%clk 00:05:03]} {[%emt 00:00:03]}
4. Nf3 {[%clk 00:05:03]} {[%emt 00:00:02]} b5 {[%clk 00:05:03]} {[%emt
00:00:02]} 5. Bd3 {[%clk 00:05:02]} {[%emt 00:00:04]} Bb7 {[%clk 00:05:03]}
{[%emt 00:00:01]} 6. a4 {[%clk 00:05:01]} {[%emt 00:00:04]} b4 {[%clk
00:05:03]} {[%emt 00:00:01]} 7. Ne2 {[%clk 00:05:01]} Nd7 {[%clk 00:05:03]}
{[%emt 00:00:02]} 8. c3 {[%clk 00:04:56]} {[%emt 00:00:08]} a5 {[%clk
00:05:03]} {[%emt 00:00:03]} 9. O-O {[%clk 00:04:54]} {[%emt 00:00:05]} Bg7
{[%clk 00:05:03]} 10. h3 {[%clk 00:04:52]} {[%emt 00:00:07]} c5 {[%clk
00:05:03]} {[%emt 00:00:01]} 11. dxc5 {[%clk 00:04:30]} {[%emt 00:00:26]} Nxc5
{[%clk 00:05:03]} {[%emt 00:00:02]} 12. Bb5+ {[%clk 00:04:30]} {[%emt
00:00:02]} Kf8 {[%clk 00:05:03]} 13. Ng3 {[%clk 00:03:56]} {[%emt 00:00:37]} h5
{[%clk 00:05:03]} {[%emt 00:00:03]} 14. Bg5 {[%clk 00:03:41]} {[%emt 00:00:18]}
f6 {[%clk 00:05:01]} {[%emt 00:00:05]} 15. cxb4 {[%clk 00:03:28]} {[%emt
00:00:17]} axb4 {[%clk 00:05:01]} {[%emt 00:00:01]} 16. Nd4 {[%clk 00:03:06]}
{[%emt 00:00:26]} Qc8 {[%clk 00:05:01]} 17. Bd2 {[%clk 00:03:00]} {[%emt
00:00:09]} h4 {[%clk 00:05:01]} {[%emt 00:00:01]} 18. Nge2 {[%clk 00:02:58]}
{[%emt 00:00:05]} Nxe4 {[%clk 00:05:01]} {[%emt 00:00:02]} 19. Nf4 {[%clk
00:02:50]} {[%emt 00:00:10]} e5 {[%clk 00:04:55]} {[%emt 00:00:10]} 20. Nxg6+
{[%clk 00:02:42]} {[%emt 00:00:11]} Kf7 {[%clk 00:04:55]} 21. Nxh8+ {[%clk
00:02:35]} {[%emt 00:00:10]} Ke7 {[%clk 00:03:46]} {[%emt 00:01:43]} 22. Ng6+
{[%clk 00:03:20]} {[%emt 00:00:17]} Kd8 {[%clk 00:03:46]} {[%emt 00:00:01]} 23.
Rc1 {[%clk 00:03:00]} {[%emt 00:00:23]} Nc5 {[%clk 00:03:44]} {[%emt 00:00:04]}
24. Bxb4 {[%clk 00:02:49]} {[%emt 00:00:15]} exd4 {[%clk 00:03:42]} {[%emt
00:00:05]} 25. Qxd4 {[%clk 00:02:45]} {[%emt 00:00:08]} Bf8 {[%emt 00:01:29]}
1-0

[Event "15e Open International de Quenza"]
[Site "Quenza"]
[Date "2026.07.05"]
[Round "5.16"]
[White "LE ROY, Tristan"]
[Black "BONELLI MAESTRACCI, Pierre Joseph"]
[Result "0-1"]
[TimeControl "5min+3s"]
[WhiteTitle "-"]
[BlackTitle "-"]
[WhiteFideId "-"]
[BlackFideId "-"]
[WhiteElo "1915"]
[BlackElo "2205"]

1. e4 {[%emt 00:13:56]} c5 2. Nf3 {[%emt 00:00:04]} d6 3. d4 cxd4 4. Nxd4 Nf6 5.
Nc3 {[%emt 00:00:02]} a6 {[%emt 00:00:02]} 6. Bc4 {[%emt 00:00:09]} e6 {[%emt
00:00:04]} 7. Be3 {[%emt 00:00:02]} Be7 {[%emt 00:00:10]} 8. Qf3 {[%emt
00:00:15]} O-O {[%emt 00:00:07]} 9. g4 {[%emt 00:00:10]} Nbd7 {[%emt 00:00:09]}
10. Bxe6 {[%emt 00:00:35]} Ne5 {[%emt 00:00:01]} 11. Qe2 {[%emt 00:00:39]} fxe6
{[%emt 00:00:04]} 12. g5 Nfg4 {[%emt 00:00:05]} 13. f4 {[%emt 00:00:08]} Nxe3
{[%emt 00:00:11]} 14. Qxe3 {[%emt 00:00:01]} Ng6 {[%emt 00:00:11]} 15. O-O
{[%emt 00:00:11]} e5 {[%emt 00:00:14]} 16. Nf5 {[%emt 00:00:18]} Bxf5 {[%emt
00:00:04]} 17. exf5 {[%emt 00:00:03]} Nxf4 {[%emt 00:00:01]} 18. h4 {[%emt
00:00:05]} Bxg5 {[%emt 00:00:10]} 19. hxg5 Qxg5+ 20. Kf2 Rxf5 {[%emt 00:00:02]}
21. Ne4 {[%emt 00:00:18]} Ng2+ {[%emt 00:00:05]} 0-1

[Event "15e Open International de Quenza"]
[Site "Quenza"]
[Date "2026.07.05"]
[Round "5.12"]
[White "RATIER-FONTANA, Matteo"]
[Black "GERONIMI, Jean-Thomas"]
[Result "1-0"]
[TimeControl "5min+3s"]
[WhiteTitle "-"]
[BlackTitle "-"]
[WhiteFideId "-"]
[BlackFideId "-"]
[WhiteElo "2368"]
[BlackElo "1972"]

1. Nf3 {[%emt 00:06:52]} f5 {[%emt 00:00:02]} 2. d4 {[%emt 00:00:01]} Nf6
{[%emt 00:00:01]} 3. Bf4 e6 {[%emt 00:00:04]} 4. e3 {[%emt 00:00:02]} d5 {[%emt
00:00:04]} 5. c4 {[%emt 00:00:02]} Bd6 {[%emt 00:00:03]} 6. Bxd6 {[%emt
00:00:01]} Qxd6 7. Nc3 c6 {[%emt 00:00:02]} 8. Bd3 {[%emt 00:00:01]} O-O {[%emt
00:00:08]} 9. Qb3 Ne4 {[%emt 00:00:47]} 10. cxd5 {[%emt 00:00:01]} cxd5 {[%emt
00:00:01]} 11. O-O {[%emt 00:00:13]} Nxc3 {[%emt 00:00:17]} 12. bxc3 {[%emt
00:00:03]} Nc6 {[%emt 00:00:15]} 13. Rfc1 {[%emt 00:00:22]} Na5 {[%emt
00:00:21]} 14. Qa4 {[%emt 00:00:14]} b6 {[%emt 00:00:06]} 15. Ne5 {[%emt
00:00:01]} Rd8 {[%emt 00:00:17]} 16. Qd1 {[%emt 00:01:02]} Nc6 {[%emt
00:00:16]} 17. Nxc6 {[%emt 00:00:24]} Qxc6 {[%emt 00:00:01]} 18. c4 dxc4 {[%emt
00:00:30]} 19. Bxc4 {[%emt 00:00:10]} Qd6 {[%emt 00:00:08]} 20. Qf3 {[%emt
00:00:09]} Rb8 {[%emt 00:00:01]} 21. Qxf5 {[%emt 00:00:08]} Kh8 {[%emt
00:00:28]} 22. Qg5 {[%emt 00:00:06]} Bb7 {[%emt 00:00:07]} 23. Qg3 {[%emt
00:00:11]} Qxg3 {[%emt 00:00:33]} 24. hxg3 Bd5 {[%emt 00:00:02]} 25. Bxd5
{[%emt 00:00:07]} Rxd5 {[%emt 00:00:03]} 26. Rc7 Ra5 {[%emt 00:00:02]} 27. Rac1
{[%emt 00:00:04]} h6 {[%emt 00:00:10]} 28. R1c2 b5 {[%emt 00:00:03]} 29. Re7
{[%emt 00:00:19]} b4 {[%emt 00:00:18]} 30. Rxe6 {[%emt 00:00:08]} Ra3 {[%emt
00:00:11]} 31. d5 {[%emt 00:00:15]} a5 32. d6 {[%emt 00:00:04]} Rd3 33. e4
{[%emt 00:00:19]} a4 34. e5 {[%emt 00:00:01]} b3 {[%emt 00:00:32]} 35. axb3
{[%emt 00:00:01]} axb3 {[%emt 00:00:04]} 36. Rb2 {[%emt 00:00:04]} Ra8 {[%emt
00:00:08]} 37. Kh2 {[%emt 00:00:43]} Ra2 {[%emt 00:00:04]} 38. Rb1 {[%emt
00:00:20]} Rxf2 {[%emt 00:00:03]} 39. Re7 {[%emt 00:00:11]} Rfd2 {[%emt
00:00:07]} 40. Rb7 {[%emt 00:00:17]} Rd5 {[%emt 00:00:06]} 41. Re1 {[%emt
00:00:12]} b2 {[%emt 00:00:09]} 42. e6 Rd1 {[%emt 00:00:04]} 43. Rxd1 {[%emt
00:00:04]} Rxd1 44. e7 {[%emt 00:00:03]} Rxd6 {[%emt 00:00:03]} 45. e8=Q+
{[%emt 00:00:02]} Kh7 46. Qe4+ Kh8 {[%emt 00:00:02]} 47. Rb8+ 1-0

[Event "15e Open International de Quenza"]
[Site "Quenza"]
[Date "2026.07.05"]
[Round "5.7"]
[White "MAZE, Sebastien"]
[Black "DELADERRIERE, Apollo"]
[Result "1-0"]
[TimeControl "5min+3s"]
[WhiteTitle "GM"]
[BlackTitle "-"]
[WhiteFideId "-"]
[BlackFideId "-"]
[WhiteElo "2455"]
[BlackElo "2111"]

1. e4 {[%clk 00:05:03]} c6 {[%clk 00:05:03]} {[%emt 00:00:02]} 2. Nf3 {[%clk
00:05:02]} {[%emt 00:00:05]} d5 {[%clk 00:05:03]} {[%emt 00:00:02]} 3. d3 dxe4
4. dxe4 Qxd1+ {[%clk 00:05:03]} {[%emt 00:00:03]} 5. Kxd1 {[%clk 00:05:02]}
{[%emt 00:00:01]} Nf6 {[%clk 00:05:03]} {[%emt 00:00:03]} 6. Nfd2 {[%clk
00:05:02]} {[%emt 00:00:03]} e5 {[%clk 00:04:54]} {[%emt 00:00:13]} 7. f3
{[%clk 00:04:58]} {[%emt 00:00:06]} Be6 {[%clk 00:04:49]} {[%emt 00:00:09]} 8.
Bc4 {[%clk 00:04:58]} {[%emt 00:00:03]} Bxc4 {[%clk 00:04:39]} {[%emt
00:00:13]} 9. Nxc4 {[%clk 00:04:58]} {[%emt 00:00:01]} Nbd7 {[%clk 00:04:38]}
{[%emt 00:00:04]} 10. a4 {[%clk 00:04:58]} {[%emt 00:00:03]} O-O-O {[%clk
00:04:38]} {[%emt 00:00:03]} 11. Ke2 {[%clk 00:04:55]} {[%emt 00:00:06]} Bc5
{[%clk 00:04:17]} {[%emt 00:00:24]} 12. c3 {[%clk 00:04:38]} {[%emt 00:00:20]}
b5 {[%clk 00:04:00]} {[%emt 00:00:21]} 13. Ne3 {[%clk 00:04:20]} {[%emt
00:00:20]} a6 {[%clk 00:03:22]} {[%emt 00:00:41]} 14. b4 {[%clk 00:04:15]}
{[%emt 00:00:08]} Bb6 {[%clk 00:03:21]} {[%emt 00:00:04]} 15. Nf5 {[%clk
00:04:14]} {[%emt 00:00:04]} Kc7 {[%clk 00:03:21]} {[%emt 00:00:03]} 16. Nd2
{[%clk 00:04:01]} {[%emt 00:00:16]} g6 {[%clk 00:03:16]} {[%emt 00:00:08]} 17.
Nh6 {[%clk 00:04:01]} {[%emt 00:00:01]} Rhf8 {[%clk 00:03:11]} {[%emt
00:00:08]} 18. Nb3 {[%clk 00:03:58]} {[%emt 00:00:06]} Nh5 {[%clk 00:03:07]}
{[%emt 00:00:08]} 19. g3 {[%clk 00:03:45]} {[%emt 00:00:16]} f5 {[%clk
00:03:04]} {[%emt 00:00:05]} 20. Be3 {[%clk 00:03:44]} {[%emt 00:00:04]} Bxe3
{[%clk 00:02:45]} {[%emt 00:00:22]} 21. Kxe3 {[%clk 00:03:44]} {[%emt
00:00:01]} f4+ {[%clk 00:02:45]} 22. Kf2 {[%clk 00:03:06]} {[%emt 00:00:41]}
fxg3+ {[%clk 00:02:18]} {[%emt 00:00:31]} 23. hxg3 {[%clk 00:03:06]} Rf6 {[%clk
00:02:16]} {[%emt 00:00:05]} 24. Ra2 {[%clk 00:02:02]} {[%emt 00:01:07]} Rdf8
{[%clk 00:02:15]} {[%emt 00:00:04]} 25. Nd2 {[%clk 00:02:02]} Kd6 {[%clk
00:01:39]} {[%emt 00:00:39]} 26. axb5 {[%clk 00:01:55]} {[%emt 00:00:11]} axb5
{[%clk 00:01:39]} {[%emt 00:00:02]} 27. Nf5+ {[%clk 00:01:47]} {[%emt
00:00:10]} Ke6 {[%clk 00:00:53]} {[%emt 00:00:50]} 28. Ne3 {[%clk 00:01:12]}
{[%emt 00:00:38]} Ke7 {[%clk 00:00:28]} {[%emt 00:00:28]} 29. Ra7 {[%clk
00:01:01]} {[%emt 00:00:13]} Rd6 {[%clk 00:00:28]} {[%emt 00:00:01]} 30. Ke1
{[%clk 00:00:08]} {[%emt 00:00:57]} Rf7 {[%clk 00:00:22]} {[%emt 00:00:09]} 31.
Ng4 {[%clk 00:00:08]} {[%emt 00:00:03]} Ke6 {[%clk 00:00:17]} {[%emt 00:00:08]}
32. Rg1 {[%clk 00:00:08]} {[%emt 00:00:02]} Nhf6 {[%clk 00:00:14]} {[%emt
00:00:06]} 33. Nf2 {[%clk 00:00:08]} {[%emt 00:00:02]} h5 {[%clk 00:00:14]}
{[%emt 00:00:02]} 34. Ke2 {[%clk 00:00:08]} Nh7 {[%clk 00:00:14]} {[%emt
00:00:03]} 35. Nh3 {[%clk 00:00:08]} {[%emt 00:00:02]} g5 {[%clk 00:00:14]}
{[%emt 00:00:02]} 36. Nb3 {[%clk 00:00:08]} {[%emt 00:00:02]} g4 {[%clk
00:00:13]} {[%emt 00:00:03]} 37. fxg4 {[%clk 00:00:08]} {[%emt 00:00:01]} hxg4
{[%clk 00:00:13]} 38. Nf2 {[%clk 00:00:08]} Ng5 {[%clk 00:00:13]} {[%emt
00:00:03]} 39. Rh1 {[%clk 00:00:08]} Rh7 {[%clk 00:00:06]} {[%emt 00:00:10]} 40.
Rxh7 {[%clk 00:00:08]} {[%emt 00:00:01]} Nxh7 {[%clk 00:00:06]} 41. Nxg4 {[%clk
00:00:08]} Nhf6 {[%clk 00:00:06]} {[%emt 00:00:02]} 42. Nf2 {[%clk 00:00:08]}
Kf7 {[%clk 00:00:05]} {[%emt 00:00:04]} 43. g4 {[%clk 00:00:08]} Kg6 {[%clk
00:00:05]} {[%emt 00:00:01]} 44. Kf3 {[%clk 00:00:08]} {[%emt 00:00:02]} Kg5
{[%clk 00:00:05]} {[%emt 00:00:02]} 45. Rc7 {[%clk 00:00:07]} {[%emt 00:00:04]}
Nf8 {[%clk 00:00:05]} {[%emt 00:00:03]} 46. Nc5 {[%emt 00:00:02]} Ng6 {[%clk
00:00:05]} {[%emt 00:00:02]} 47. Nh3+ {[%clk 00:00:07]} {[%emt 00:00:02]} Kh6
{[%clk 00:00:05]} {[%emt 00:00:03]} 48. g5+ {[%clk 00:00:07]} Kh5 {[%clk
00:00:05]} {[%emt 00:00:02]} 49. gxf6 {[%clk 00:00:07]} {[%emt 00:00:01]} Rxf6+
{[%clk 00:00:05]} 50. Ke2 {[%clk 00:00:07]} {[%emt 00:00:01]} Kg4 {[%clk
00:00:05]} {[%emt 00:00:02]} 51. Nf2+ {[%clk 00:00:07]} Kg3 {[%clk 00:00:05]}
52. Nfd3 {[%clk 00:00:07]} Kg2 {[%clk 00:00:04]} {[%emt 00:00:03]} 53. Rg7
{[%clk 00:00:07]} Kh3 {[%clk 00:00:04]} {[%emt 00:00:01]} 54. Nd7 {[%clk
00:00:07]} {[%emt 00:00:01]} Rd6 {[%clk 00:00:04]} {[%emt 00:00:01]} 55. N7xe5
{[%clk 00:00:07]} {[%emt 00:00:01]} Nh4 {[%clk 00:00:04]} {[%emt 00:00:03]} 56.
Rh7 {[%clk 00:00:07]} {[%emt 00:00:01]} Kg3 {[%clk 00:00:04]} {[%emt 00:00:01]}
57. Rg7+ {[%clk 00:00:07]} Kh3 {[%clk 00:00:04]} 58. Nf7 {[%clk 00:00:07]}
{[%emt 00:00:02]} Ng2 {[%clk 00:00:04]} {[%emt 00:00:02]} 59. Ng5+ {[%clk
00:00:07]} Kg3 {[%clk 00:00:04]} {[%emt 00:00:02]} 60. Nf7+ {[%clk 00:00:07]}
{[%emt 00:00:01]} 1-0

[Event "15e Open International de Quenza"]
[Site "Quenza"]
[Date "2026.07.05"]
[Round "5.1"]
[White "KOELLE, Tobias"]
[Black "SUMETS, Andrey"]
[Result "1-0"]
[TimeControl "5min+3s"]
[WhiteTitle "IM"]
[BlackTitle "GM"]
[WhiteFideId "-"]
[BlackFideId "-"]
[WhiteElo "2613"]
[BlackElo "2470"]

1. d4 {[%clk 00:05:03]} d5 {[%emt 00:00:03]} 2. c4 {[%clk 00:05:03]} c6 {[%clk
00:05:03]} {[%emt 00:00:02]} 3. cxd5 {[%clk 00:05:03]} {[%emt 00:00:01]} cxd5
{[%clk 00:05:03]} {[%emt 00:00:01]} 4. Bg5 {[%clk 00:05:03]} Nf6 {[%clk
00:04:56]} {[%emt 00:00:11]} 5. Bxf6 {[%clk 00:05:03]} {[%emt 00:00:02]} gxf6
{[%clk 00:04:56]} 6. Nc3 {[%clk 00:05:03]} {[%emt 00:00:01]} Nc6 {[%clk
00:04:56]} {[%emt 00:00:03]} 7. e3 {[%clk 00:05:03]} e6 {[%clk 00:04:56]}
{[%emt 00:00:02]} 8. f4 {[%clk 00:05:03]} f5 {[%clk 00:04:48]} {[%emt
00:00:11]} 9. Nf3 {[%clk 00:05:03]} Bd6 {[%clk 00:04:48]} {[%emt 00:00:01]} 10.
Bd3 {[%clk 00:05:03]} {[%emt 00:00:01]} Bd7 {[%clk 00:04:48]} {[%emt 00:00:02]}
11. Kf2 {[%clk 00:05:03]} {[%emt 00:00:01]} a6 {[%clk 00:04:48]} {[%emt
00:00:03]} 12. Rc1 {[%clk 00:05:03]} Qe7 {[%clk 00:04:48]} {[%emt 00:00:01]} 13.
a3 {[%clk 00:05:03]} {[%emt 00:00:01]} Rc8 {[%clk 00:04:48]} {[%emt 00:00:01]}
14. Na4 {[%clk 00:04:59]} {[%emt 00:00:08]} Rc7 {[%clk 00:04:30]} {[%emt
00:00:21]} 15. Nc5 {[%clk 00:04:59]} {[%emt 00:00:03]} O-O {[%clk 00:03:41]}
{[%emt 00:00:52]} 16. h3 {[%clk 00:04:57]} {[%emt 00:00:05]} Nb8 {[%clk
00:03:24]} {[%emt 00:00:20]} 17. g4 {[%clk 00:04:57]} {[%emt 00:00:03]} Bxc5
{[%clk 00:03:23]} {[%emt 00:00:04]} 18. dxc5 {[%clk 00:04:57]} {[%emt
00:00:01]} Rxc5 {[%clk 00:03:06]} {[%emt 00:00:20]} 19. Rxc5 {[%clk 00:04:57]}
{[%emt 00:00:01]} Qxc5 {[%clk 00:03:06]} {[%emt 00:00:02]} 20. gxf5 {[%clk
00:04:57]} exf5 {[%clk 00:03:02]} {[%emt 00:00:07]} 21. Ng5 {[%clk 00:04:29]}
{[%emt 00:00:31]} Re8 {[%clk 00:02:51]} {[%emt 00:00:13]} 22. Re1 {[%clk
00:04:08]} {[%emt 00:00:23]} d4 {[%clk 00:02:37]} {[%emt 00:00:18]} 23. Qh5
{[%clk 00:04:01]} {[%emt 00:00:10]} dxe3+ {[%clk 00:02:37]} {[%emt 00:00:01]}
24. Ke2 {[%clk 00:03:41]} {[%emt 00:00:23]} Qd5 {[%clk 00:02:26]} {[%emt
00:00:14]} 25. Rg1 {[%clk 00:03:25]} {[%emt 00:00:18]} Kf8 {[%clk 00:02:23]}
{[%emt 00:00:07]} 26. Nxh7+ {[%clk 00:03:19]} {[%emt 00:00:09]} Ke7 {[%clk
00:02:23]} {[%emt 00:00:01]} 27. Qg5+ {[%clk 00:03:09]} {[%emt 00:00:13]} Kd6
{[%clk 00:02:23]} {[%emt 00:00:01]} 28. Nf6 {[%clk 00:03:09]} Qb3 {[%clk
00:02:17]} {[%emt 00:00:09]} 29. Nxe8+ {[%clk 00:03:09]} {[%emt 00:00:02]} Bxe8
{[%clk 00:02:17]} 30. Qf6+ {[%clk 00:03:09]} {[%emt 00:00:01]} Kc7 {[%clk
00:02:15]} {[%emt 00:00:06]} 31. Qe5+ {[%clk 00:03:09]} {[%emt 00:00:02]} Kd8
{[%clk 00:02:13]} {[%emt 00:00:05]} 32. Qxb8+ {[%clk 00:03:09]} {[%emt
00:00:02]} 1-0